fUST/lending_fUST_20241112
["ID","MTS","AMOUNT","RATE_DAILY","PERIOD"]
[341999783,1731355844121,-150.112233,0.000219,4]
[341999785,1731355844130,-1377.32223159,0.000219,2]
[341999788,1731355844140,-152.33679743,0.000219,2]
[341999790,1731355844149,-151.0,0.00021917,2]
[341999792,1731355844159,-500.0,0.00021917,2]
[341999794,1731355844168,-500.0,0.00021917,2]
[341999796,1731355844178,-352.83327194,0.00021917,2]
[341999798,1731355844187,-503.8134152,0.00021917,2]
[341999800,1731355844196,-500.0,0.00021917,2]
[341999802,1731355844205,-500.0,0.00021917,2]
[341999804,1731355844215,-503.83226573,0.00021917,2]
[341999806,1731355844223,-500.0,0.00021917,2]
[341999808,1731355844233,-322.3590127,0.00021917,2]
[341999810,1731355844242,-173.77838457,0.00021917,2]
[341999812,1731355844251,-500.0,0.00021917,2]
[341999814,1731355844262,-500.0,0.00021917,2]
[341999816,1731355844271,-500.0,0.00021917,2]
[341999818,1731355844280,-500.0,0.00021917,2]
[341999820,1731355844289,-500.0,0.00021917,2]
[341999822,1731355844298,-500.0,0.00021917,2]
[341999824,1731355844308,-223.68634549,0.00021917,2]
[341999826,1731355844317,-500.0,0.00021917,2]
[341999828,1731355844327,-500.0,0.00021917,2]
[341999830,1731355844336,-500.0,0.00021917,2]
[341999832,1731355844345,-500.0,0.00021917,2]
[341999834,1731355844354,-500.0,0.00021917,2]
[341999836,1731355844363,-500.0,0.00021917,2]
[341999838,1731355844373,-500.0,0.00021917,2]
[341999840,1731355844382,-546.20792493,0.00021917,2]
[341999841,1731355844391,-500.0,0.00021917,2]
[341999842,1731355844401,-527.8137765,0.00021917,2]
[341999843,1731355844411,-500.0,0.00021917,2]
[341999844,1731355844421,-500.0,0.00021917,2]
[341999845,1731355844431,-500.0,0.00021917,2]
[341999846,1731355844440,-500.0,0.00021917,2]
[341999847,1731355844450,-500.0,0.00021917,2]
[341999848,1731355844459,-372.75000211,0.00021917,2]
[341999849,1731355844468,-500.0,0.00021917,2]
[341999850,1731355844478,-500.0,0.00021917,2]
[341999851,1731355844488,-500.0,0.00021917,2]
[341999852,1731355844497,-500.0,0.00021917,2]
[341999853,1731355844510,-500.0,0.00021917,2]
[341999854,1731355844521,-500.0,0.00021917,2]
[341999855,1731355844530,-500.0,0.00021917,2]
[341999856,1731355844539,-500.0,0.00021917,2]
[341999858,1731355844548,-500.0,0.00021917,2]
[341999859,1731355844559,-500.0,0.00021917,2]
[341999861,1731355844568,-500.0,0.00021917,2]
[341999863,1731355844578,-500.0,0.00021917,2]
[341999865,1731355844587,-500.0,0.00021917,2]
[341999868,1731355844597,-568.8,0.00021917,2]
[341999869,1731355844607,-500.0,0.00021917,2]
[341999872,1731355844617,-540.54940375,0.00021917,2]
[341999874,1731355844626,-500.0,0.00021917,2]
[341999875,1731355844636,-500.0,0.00021917,2]
[341999877,1731355844645,-334.74390031,0.00021917,2]
[341999879,1731355844655,-193.13266262,0.00021917,2]
[341999882,1731355844664,-500.0,0.00021917,2]
[341999884,1731355844674,-500.0,0.00021917,2]
[341999885,1731355844683,-500.0,0.00021917,2]
[341999887,1731355844692,-500.0,0.00021917,2]
[341999889,1731355844702,-504.36639116,0.00021917,2]
[341999891,1731355844711,-841.82,0.00021917,2]
[341999893,1731355844720,-500.0,0.00021917,2]
[341999894,1731355844729,-500.0,0.00021917,2]
[341999895,1731355844738,-500.0,0.00021917,2]
[341999896,1731355844748,-500.0,0.00021917,2]
[341999897,1731355844760,-500.0,0.00021917,2]
[341999898,1731355844770,-500.0,0.00021917,2]
[341999899,1731355844780,-253.923298,0.00021917,2]
[341999900,1731355844791,-500.0,0.00021917,2]
[341999901,1731355844801,-500.0,0.00021917,2]
[341999902,1731355844811,-500.0,0.00021917,2]
[341999903,1731355844821,-500.0,0.00021917,2]
[341999904,1731355844832,-500.0,0.00021917,2]
[341999905,1731355844841,-500.0,0.00021917,2]
[341999906,1731355844851,-200.0,0.00021917,2]
[341999907,1731355844861,-665.31,0.00021917,2]
[341999908,1731355844871,-500.0,0.00021917,2]
[341999909,1731355844881,-500.0,0.00021917,2]
[341999910,1731355844891,-503.86187487,0.00021917,2]
[341999911,1731355844901,-500.0,0.00021917,2]
[341999912,1731355844915,-500.0,0.00021917,2]
[341999913,1731355844925,-500.0,0.00021917,2]
[341999914,1731355844937,-500.0,0.00021917,2]
[341999915,1731355844947,-500.0,0.00021917,2]
[341999917,1731355844958,-500.0,0.00021917,2]
[341999918,1731355844968,-500.0,0.00021917,2]
[341999919,1731355844978,-500.0,0.00021917,2]
[341999920,1731355844990,-500.0,0.00021917,2]
[341999921,1731355845000,-500.0,0.00021917,2]
[341999922,1731355845012,-500.0,0.00021917,2]
[341999923,1731355845022,-500.0,0.00021917,2]
[341999924,1731355845031,-2252.85,0.00021917,2]
[341999925,1731355845040,-500.0,0.00021917,2]
[341999926,1731355845050,-500.0,0.00021917,2]
[341999927,1731355845059,-416.11508982,0.00021917,2]
[341999928,1731355845069,-500.0,0.00021917,2]
[341999929,1731355845078,-730.29,0.00021917,2]
[341999930,1731355845087,-512.51137563,0.00021917,2]
[341999931,1731355845097,-507.76457974,0.00021917,2]
[341999932,1731355845106,-500.0,0.00021917,2]
[341999933,1731355845116,-325.92334198,0.00021917,2]
[341999934,1731355845125,-500.0,0.00021917,2]
[341999936,1731355845134,-500.0,0.00021917,2]
[341999938,1731355845144,-500.0,0.00021917,2]
[341999940,1731355845153,-500.0,0.00021917,2]
[341999942,1731355845163,-500.0,0.00021917,2]
[341999944,1731355845172,-967.53,0.00021917,2]
[341999946,1731355845182,-500.0,0.00021917,2]
[341999947,1731355845191,-500.0,0.00021917,2]
[341999948,1731355845201,-1170.42,0.00021917,2]
[341999949,1731355845210,-500.0,0.00021917,2]
[341999950,1731355845219,-500.0,0.00021917,2]
[341999951,1731355845228,-500.0,0.00021917,2]
[341999952,1731355845238,-500.0,0.00021917,2]
[341999953,1731355845247,-500.0,0.00021917,2]
[341999954,1731355845259,-500.0,0.00021917,2]
[341999955,1731355845268,-2243.38,0.00021917,2]
[341999957,1731355845278,-2336.0,0.00021917,2]
[341999958,1731355845287,-500.0,0.00021917,2]
[341999960,1731355845296,-500.0,0.00021917,2]
[341999962,1731355845305,-500.0,0.00021917,2]
[341999963,1731355845315,-504.1002483,0.00021917,2]
[341999964,1731355845324,-500.0,0.00021917,2]
[341999965,1731355845332,-500.0,0.00021917,2]
[341999966,1731355845342,-500.0,0.00021917,2]
[341999967,1731355845351,-500.0,0.00021917,2]
[341999968,1731355845360,-500.0,0.00021917,2]
[341999969,1731355845370,-500.0,0.00021917,2]
[341999970,1731355845380,-500.0,0.00021917,2]
[341999971,1731355845389,-500.0,0.00021917,2]
[341999972,1731355845398,-500.0,0.00021917,2]
[341999973,1731355845408,-500.0,0.00021917,2]
[341999975,1731355845417,-500.0,0.00021917,2]
[341999977,1731355845427,-302.53564972,0.00021917,2]
[341999978,1731355845436,-500.0,0.00021917,2]
[341999980,1731355845446,-500.0,0.00021917,2]
[341999982,1731355845455,-500.0,0.00021917,2]
[341999984,1731355845465,-500.0,0.00021917,2]
[341999986,1731355845474,-153.03031455,0.00021917,2]
[341999988,1731355845483,-1768.39,0.00021917,2]
[341999989,1731355845493,-500.0,0.00021917,2]
[341999991,1731355845503,-500.0,0.00021917,2]
[341999993,1731355845512,-500.0,0.00021917,2]
[341999995,1731355845521,-500.0,0.00021917,2]
[341999996,1731355845531,-500.0,0.00021917,2]
[341999997,1731355845540,-848.08,0.00021917,2]
[341999998,1731355845549,-500.0,0.00021917,2]
[341999999,1731355845558,-228.48647855,0.00021917,2]
[342000000,1731355845568,-500.0,0.00021917,2]
[342000001,1731355845577,-500.0,0.00021917,2]
[342000002,1731355845587,-500.0,0.00021917,2]
[342000003,1731355845596,-500.0,0.00021917,2]
[342000004,1731355845605,-500.0,0.00021917,2]
[342000005,1731355845615,-500.0,0.00021917,2]
[342000006,1731355845624,-500.0,0.00021917,2]
[342000007,1731355845633,-557.33,0.00021917,2]
[342000008,1731355845642,-500.0,0.00021917,2]
[342000009,1731355845652,-500.0,0.00021917,2]
[342000010,1731355845661,-1298.81,0.00021917,2]
[342000011,1731355845670,-578.39,0.00021917,2]
[342000012,1731355845680,-336.48,0.00021917,2]
[342000013,1731355845689,-500.0,0.00021917,2]
[342000014,1731355845699,-500.0,0.00021917,2]
[342000015,1731355845708,-500.0,0.00021917,2]
[342000016,1731355845719,-500.0,0.00021917,2]
[342000017,1731355845728,-500.0,0.00021917,2]
[342000018,1731355845738,-500.0,0.00021917,2]
[342000019,1731355845748,-500.0,0.00021917,2]
[342000020,1731355845759,-500.0,0.00021917,2]
[342000021,1731355845769,-509.89607738,0.00021917,2]
[342000022,1731355845779,-500.0,0.00021917,2]
[342000023,1731355845788,-500.0,0.00021917,2]
[342000024,1731355845798,-500.0,0.00021917,2]
[342000025,1731355845808,-566.59338015,0.00021917,2]
[342000026,1731355845818,-1424.44,0.00021917,2]
[342000027,1731355845829,-500.0,0.00021917,2]
[342000028,1731355845838,-319.3940404,0.00021917,2]
[342000029,1731355845848,-150.12912762,0.00021917,2]
[342000030,1731355845858,-500.0,0.00021917,2]
[342000031,1731355845867,-536.12657867,0.00021917,2]
[342000032,1731355845877,-585.35398462,0.00021917,2]
[342000035,1731355845887,-500.0,0.00021917,2]
[342000036,1731355845898,-503.92081237,0.00021917,2]
[342000037,1731355845909,-500.0,0.00021917,2]
[342000038,1731355845921,-502.49271803,0.00021917,2]
[342000039,1731355845932,-924.32,0.00021917,2]
[342000041,1731355845944,-500.0,0.00021917,2]
[342000043,1731355845955,-538.71,0.00021917,2]
[342000045,1731355845966,-235.14398624,0.00021917,2]
[342000046,1731355845979,-500.0,0.00021917,2]
[342000047,1731355845989,-542.44056729,0.00021917,2]
[342000048,1731355846001,-305.15246418,0.00021917,2]
[342000049,1731355846013,-866.81,0.00021917,2]
[342000050,1731355846023,-500.0,0.00021917,2]
[342000052,1731355846033,-500.0,0.00021917,2]
[342000054,1731355846042,-500.0,0.00021917,2]
[342000057,1731355846052,-3916.0,0.00021917,2]
[342000059,1731355846062,-979.82,0.00021917,2]
[342000062,1731355846072,-500.0,0.00021917,2]
[342000064,1731355846083,-369.53366413,0.00021917,2]
[342000065,1731355846093,-773.57,0.00021917,2]
[342000066,1731355846104,-500.0,0.00021917,2]
[342000068,1731355846114,-500.0,0.00021917,2]
[342000070,1731355846123,-500.0,0.00021917,2]
[342000072,1731355846134,-627.61,0.00021917,2]
[342000073,1731355846143,-1423.21,0.00021917,2]
[342000076,1731355846154,-519.9081518,0.00021917,2]
[342000077,1731355846164,-1410.09,0.00021917,2]
[342000080,1731355846175,-500.0,0.00021917,2]
[342000081,1731355846184,-500.0,0.00021917,2]
[342000083,1731355846195,-1799.86,0.00021917,2]
[342000085,1731355846204,-500.0,0.00021917,2]
[342000087,1731355846214,-500.0,0.00021917,2]
[342000088,1731355846224,-500.0,0.00021917,2]
[342000089,1731355846234,-500.0,0.00021917,2]
[342000090,1731355846244,-500.0,0.00021917,2]
[342000091,1731355846256,-500.0,0.00021917,2]
[342000092,1731355846266,-500.0,0.00021917,2]
[342000093,1731355846276,-500.0,0.00021917,2]
[342000094,1731355846286,-500.0,0.00021917,2]
[342000095,1731355846296,-251.5786886,0.00021917,2]
[342000096,1731355846307,-500.0,0.00021917,2]
[342000097,1731355846317,-500.0,0.00021917,2]
[342000098,1731355846326,-500.0,0.00021917,2]
[342000099,1731355846337,-500.0,0.00021917,2]
[342000100,1731355846347,-500.0,0.00021917,2]
[342000101,1731355846357,-500.0,0.00021917,2]
[342000102,1731355846367,-500.0,0.00021917,2]
[342000103,1731355846377,-500.0,0.00021917,2]
[342000104,1731355846387,-500.0,0.00021917,2]
[342000105,1731355846397,-500.0,0.00021917,2]
[342000106,1731355846407,-500.0,0.00021917,2]
[342000107,1731355846417,-552.08877979,0.00021917,2]
[342000108,1731355846427,-502.17,0.00021917,2]
[342000112,1731355846555,-500.0,0.00021917,2]
[342000113,1731355846567,-592.3541339,0.00021917,2]
[342000114,1731355846576,-500.0,0.00021917,2]
[342000115,1731355846587,-635.42,0.00021917,2]
[342000116,1731355846597,-500.0,0.00021917,2]
[342000118,1731355846608,-4457.62,0.00021917,2]
[342000120,1731355846619,-500.0,0.00021917,2]
[342000122,1731355846629,-500.0,0.00021917,2]
[342000123,1731355846640,-484.37251709,0.00021917,2]
[342000124,1731355846649,-500.0,0.00021917,2]
[342000125,1731355846659,-500.0,0.00021917,2]
[342000126,1731355846670,-1959.14,0.00021917,2]
[342000127,1731355846679,-500.0,0.00021917,2]
[342000128,1731355846690,-500.0,0.00021917,2]
[342000129,1731355846701,-500.0,0.00021917,2]
[342000130,1731355846710,-500.0,0.00021917,2]
[342000131,1731355846720,-500.0,0.00021917,2]
[342000132,1731355846729,-500.0,0.00021917,2]
[342000133,1731355846739,-797.46,0.00021917,2]
[342000134,1731355846749,-493.85982093,0.00021917,2]
[342000135,1731355846762,-500.0,0.00021917,2]
[342000136,1731355846771,-500.0,0.00021917,2]
[342000137,1731355846781,-1372.25,0.00021917,2]
[342000138,1731355846792,-500.0,0.00021917,2]
[342000139,1731355846802,-507.70238262,0.00021917,2]
[342000140,1731355846813,-500.0,0.00021917,2]
[342000141,1731355846823,-500.0,0.00021917,2]
[342000142,1731355846833,-533.77,0.00021917,2]
[342000144,1731355846843,-500.0,0.00021917,2]
[342000145,1731355846853,-503.84188911,0.00021917,2]
[342000147,1731355846865,-500.0,0.00021917,2]
[342000149,1731355846875,-500.0,0.00021917,2]
[342000151,1731355846889,-775.44,0.00021917,2]
[342000154,1731355846900,-500.0,0.00021917,2]
[342000156,1731355846910,-500.0,0.00021917,2]
[342000158,1731355846923,-1264.27,0.00021917,2]
[342000159,1731355846934,-500.0,0.00021917,2]
[342000161,1731355846944,-500.0,0.00021917,2]
[342000164,1731355846955,-2436.92,0.00021917,2]
[342000166,1731355846966,-936.67,0.00021917,2]
[342000168,1731355846976,-500.0,0.00021917,2]
[342000169,1731355846986,-500.0,0.00021917,2]
[342000171,1731355846996,-500.0,0.00021917,2]
[342000174,1731355847007,-500.0,0.00021917,2]
[342000176,1731355847017,-500.0,0.00021917,2]
[342000178,1731355847028,-500.0,0.00021917,2]
[342000179,1731355847038,-2021.65,0.00021917,2]
[342000182,1731355847048,-500.0,0.00021917,2]
[342000184,1731355847058,-1853.63,0.00021917,2]
[342000186,1731355847068,-500.0,0.00021917,2]
[342000188,1731355847078,-500.0,0.00021917,2]
[342000189,1731355847087,-427.45792355,0.00021917,2]
[342000192,1731355847098,-199.63392208,0.00021917,2]
[342000194,1731355847108,-500.0,0.00021917,2]
[342000195,1731355847118,-500.0,0.00021917,2]
[342000197,1731355847128,-500.0,0.00021917,2]
[342000199,1731355847139,-500.0,0.00021917,2]
[342000201,1731355847148,-500.0,0.00021917,2]
[342000203,1731355847158,-500.0,0.00021917,2]
[342000205,1731355847168,-5738.72,0.00021917,2]
[342000208,1731355847178,-509.02536797,0.00021917,2]
[342000210,1731355847188,-500.0,0.00021917,2]
[342000212,1731355847199,-500.0,0.00021917,2]
[342000214,1731355847209,-500.0,0.00021917,2]
[342000216,1731355847219,-500.0,0.00021917,2]
[342000218,1731355847228,-500.0,0.00021917,2]
[342000220,1731355847238,-500.0,0.00021917,2]
[342000222,1731355847247,-500.0,0.00021917,2]
[342000224,1731355847257,-1021.15,0.00021917,2]
[342000226,1731355847266,-500.0,0.00021917,2]
[342000228,1731355847275,-500.0,0.00021917,2]
[342000230,1731355847287,-500.0,0.00021917,2]
[342000232,1731355847296,-500.0,0.00021917,2]
[342000234,1731355847306,-500.0,0.00021917,2]
[342000236,1731355847315,-530.57,0.00021917,2]
[342000238,1731355847325,-500.0,0.00021917,2]
[342000240,1731355847334,-500.0,0.00021917,2]
[342000242,1731355847343,-500.0,0.00021917,2]
[342000244,1731355847351,-329.24999435,0.00021917,2]
[342000246,1731355847360,-500.0,0.00021917,2]
[342000248,1731355847370,-500.0,0.00021917,2]
[342000250,1731355847379,-500.0,0.00021917,2]
[342000252,1731355847388,-500.0,0.00021917,2]
[342000254,1731355847397,-500.0,0.00021917,2]
[342000256,1731355847406,-500.0,0.00021917,2]
[342000258,1731355847415,-500.0,0.00021917,2]
[342000260,1731355847424,-500.0,0.00021917,2]
[342000262,1731355847433,-4862.85,0.00021917,2]
[342000264,1731355847442,-500.0,0.00021917,2]
[342000266,1731355847451,-19539.58,0.00021917,2]
[342000268,1731355847460,-500.0,0.00021917,2]
[342000270,1731355847469,-500.0,0.00021917,2]
[342000272,1731355847478,-500.0,0.00021917,2]
[342000274,1731355847488,-166.666666,0.00021918,2]
[342000276,1731355847497,-1000.0,0.00021933,2]
[342000278,1731355847507,-1000.0,0.0002195,2]
[342000280,1731355847516,-500.0,0.00021973,2]
[342000281,1731355847525,-500.0,0.00021973,2]
[342000283,1731355847535,-500.0,0.00021973,2]
[342000285,1731355847544,-502.5963108,0.00021973,2]
[342000287,1731355847553,-500.0,0.00021973,2]
[342000289,1731355847563,-500.0,0.00021973,2]
[342000291,1731355847572,-500.0,0.00021973,2]
[342000294,1731355847581,-500.0,0.00021973,2]
[342000296,1731355847590,-500.0,0.00021973,2]
[342000298,1731355847599,-500.0,0.00021973,2]
[342000299,1731355847608,-500.0,0.00021973,2]
[342000300,1731355847618,-500.0,0.00021973,2]
[342000301,1731355847627,-500.0,0.00021973,2]
[342000302,1731355847636,-496.09583213,0.00021973,2]
[342000303,1731355847645,-500.0,0.00021973,2]
[342000305,1731355847654,-500.0,0.00021973,2]
[342000307,1731355847663,-500.0,0.00021973,2]
[342000309,1731355847672,-500.0,0.00021973,2]
[342000311,1731355847681,-500.0,0.00021973,2]
[342000313,1731355847690,-501.87476269,0.00021973,2]
[342000315,1731355847699,-150.01,0.00021999,2]
[342000317,1731355847708,-3243.1167263,0.00021999,2]
[342000319,1731355847718,-500.0,0.00021999,2]
[342000321,1731355847728,-263.55404377,0.00021999,2]
[342000323,1731355847737,-240.66756466,0.00021999,2]
[342000325,1731355847747,-332.64927327,0.00021999,2]
[342000327,1731355847757,-249.3193962,0.00021999,2]
[342000329,1731355847767,-300.0,0.00021999,2]
[342000331,1731355847777,-186.40843516,0.00021999,2]
[342000333,1731355847787,-500.0,0.00021999,2]
[342000335,1731355847796,-238.30386318,0.00021999,2]
[342000337,1731355847805,-431910.39456689,0.00022,2]
[342000339,1731355847815,-150.0,0.00022,2]
[342000341,1731355847824,-1100.0,0.00022,2]
[342000343,1731355847833,-14008.11480318,0.00022,30]
[342000346,1731355847843,-2024.38743107,0.00022,2]
[342000348,1731355847852,-150.112233,0.00022,4]
[342000350,1731355847862,-2407.70754975,0.00022,2]
[342000351,1731355847871,-151.0,0.00022,7]
[342000353,1731355847881,-151.0,0.00022,7]
[342000356,1731355847890,-151.0,0.00022,7]
[342000358,1731355847899,-151.0,0.00022,7]
[342000360,1731355847911,-458.0,0.00022,2]
[342000361,1731355847922,-151.0,0.00022,7]
[342000363,1731355847932,-151.0,0.00022,7]
[342000366,1731355847942,-151.0,0.00022,3]
[342000368,1731355847951,-151.0,0.00022,7]
[342000370,1731355847961,-151.0,0.00022,7]
[342000372,1731355847971,-151.0,0.00022,7]
[342000374,1731355847981,-151.0,0.00022,7]
[342000376,1731355847992,-151.705745,0.00022,7]
[342000378,1731355848002,-481.092244,0.00022,7]
[342000380,1731355848014,-481.092244,0.00022,7]
[342000382,1731355848027,-1046.927828,0.00022,7]
[342000384,1731355848037,-3000.0,0.00022,2]
[342000386,1731355848047,-1046.927828,0.00022,7]
[342000388,1731355848057,-151.0,0.00022,7]
[342000390,1731355848067,-347.700268,0.00022,7]
[342000391,1731355848076,-151.0,0.00022,7]
[342000393,1731355848086,-347.700268,0.00022,7]
[342000395,1731355848096,-551.595782,0.00022,7]
[342000398,1731355848105,-151.0,0.00022,7]
[342000400,1731355848116,-150.112233,0.00022,6]
[342000402,1731355848126,-150.112233,0.00022,3]
[342000404,1731355848135,-151.0,0.00022,7]
[342000406,1731355848144,-178.127304,0.00022,7]
[342000408,1731355848154,-265.093655,0.00022,7]
[342000409,1731355848163,-265.093655,0.00022,7]
[342000411,1731355848173,-198.744429,0.00022,7]
[342000413,1731355848182,-198.744429,0.00022,7]
[342000415,1731355848192,-151.0,0.00022,7]
[342000417,1731355848202,-151.0,0.00022,7]
[342000420,1731355848212,-151.0,0.00022,7]
[342000421,1731355848221,-151.0,0.00022,7]
[342000423,1731355848230,-258.965566,0.00022,7]
[342000426,1731355848240,-258.965566,0.00022,7]
[342000427,1731355848249,-151.0,0.00022,7]
[342000429,1731355848262,-151.0,0.00022,7]
[342000431,1731355848271,-151.0,0.00022,7]
[342000434,1731355848282,-151.0,0.00022,7]
[342000436,1731355848291,-151.0,0.00022,7]
[342000438,1731355848300,-151.0,0.00022,7]
[342000440,1731355848310,-151.0,0.00022,7]
[342000442,1731355848320,-151.0,0.00022,7]
[342000444,1731355848329,-151.0,0.00022,7]
[342000446,1731355848339,-151.0,0.00022,7]
[342000448,1731355848348,-151.0,0.00022,7]
[342000450,1731355848358,-151.0,0.00022,7]
[342000452,1731355848367,-151.0,0.00022,7]
[342000454,1731355848377,-151.0,0.00022,7]
[342000456,1731355848387,-151.0,0.00022,7]
[342000458,1731355848397,-151.0,0.00022,7]
[342000460,1731355848406,-151.0,0.00022,7]
[342000462,1731355848415,-226.418533,0.00022,7]
[342000464,1731355848424,-151.0,0.00022,7]
[342000466,1731355848434,-151.0,0.00022,7]
[342000468,1731355848443,-210.887696,0.00022,7]
[342000470,1731355848453,-210.887696,0.00022,7]
[342000471,1731355848462,-158.0,0.00022,2]
[342000473,1731355848472,-151.0,0.00022,7]
[342000476,1731355848481,-151.0,0.00022,7]
[342000478,1731355848491,-183.890743,0.00022,2]
[342000480,1731355848500,-183.890743,0.00022,2]
[342000482,1731355848511,-466.059218,0.00022,2]
[342000484,1731355848520,-3000.0,0.0002201,2]
[342000485,1731355848529,-3000.0,0.0002202,2]
[342000487,1731355848539,-3000.0,0.0002203,2]
[342000489,1731355848548,-3000.0,0.0002204,2]
[342000491,1731355848557,-3000.0,0.0002205,2]
[342000494,1731355848567,-3000.0,0.0002206,2]
[342000495,1731355848576,-3000.0,0.0002207,2]
[342000498,1731355848585,-3000.0,0.0002208,2]
[342000499,1731355848595,-3000.0,0.0002209,2]
[342000502,1731355848604,-150.112235,0.000221,6]
[342000503,1731355848613,-3000.0,0.000221,2]
[342000505,1731355848623,-3000.0,0.0002211,2]
[342000508,1731355848633,-4537.2388558,0.00022111,2]
[342000510,1731355848643,-3000.0,0.0002212,2]
[342000511,1731355848652,-3000.0,0.0002213,2]
[342000513,1731355848661,-454.869319,0.00022137,2]
[342000516,1731355848671,-3000.0,0.0002214,2]
[342000518,1731355848680,-3000.0,0.0002215,2]
[342000520,1731355848690,-3000.0,0.0002216,2]
[342000522,1731355848698,-3000.0,0.0002217,2]
[342000524,1731355848708,-500.0,0.00022173,2]
[342000526,1731355848717,-340.61145551,0.00022173,2]
[342000528,1731355848727,-500.0,0.00022173,2]
[342000530,1731355848736,-649.11708929,0.00022173,2]
[342000532,1731355848746,-419.05687709,0.00022173,2]
[342000534,1731355848755,-500.0,0.00022173,2]
[342000536,1731355848766,-500.0,0.00022173,2]
[342000538,1731355848776,-500.0,0.00022173,2]
[342000540,1731355848785,-500.0,0.00022173,2]
[342000542,1731355848795,-500.0,0.00022173,2]
[342000544,1731355848805,-3000.0,0.0002218,2]
[342000546,1731355848814,-3000.0,0.0002219,2]
[342000548,1731355848824,-152.089447,0.00022191,7]
[342000550,1731355848834,-151.0,0.00022191,7]
[342000552,1731355848843,-151.0,0.00022191,7]
[342000554,1731355848853,-151.0,0.00022191,7]
[342000556,1731355848862,-151.0,0.00022191,7]
[342000558,1731355848872,-151.0,0.00022191,7]
[342000560,1731355848882,-500.0,0.00022191,2]
[342000562,1731355848891,-153.28147,0.00022191,7]
[342000564,1731355848900,-151.0,0.00022191,7]
[342000566,1731355848911,-500.0,0.00022191,2]
[342000568,1731355848922,-289.132075,0.00022191,2]
[342000570,1731355848931,-511.17824168,0.00022191,2]
[342000572,1731355848940,-500.0,0.00022191,2]
[342000574,1731355848950,-500.0,0.00022191,2]
[342000576,1731355848960,-500.0,0.00022191,2]
[342000578,1731355848970,-500.0,0.00022191,2]
[342000580,1731355848980,-648.06430192,0.00022191,2]
[342000582,1731355848990,-151.0,0.00022191,7]
[342000594,1731355849103,-151.0,0.00022191,7]
[342000596,1731355849113,-500.0,0.00022191,2]
[342000597,1731355849123,-500.0,0.00022191,2]
[342000599,1731355849132,-500.0,0.00022191,2]
[342000600,1731355849142,-517.4959298,0.00022191,2]
[342000602,1731355849152,-500.0,0.00022191,2]
[342000604,1731355849162,-500.0,0.00022191,2]
[342000606,1731355849171,-500.0,0.00022191,2]
[342000608,1731355849180,-500.0,0.00022191,2]
[342000610,1731355849192,-500.0,0.00022191,2]
[342000612,1731355849201,-151.0,0.00022191,7]
[342000613,1731355849210,-151.0,0.00022191,7]
[342000615,1731355849220,-152.188017,0.00022191,7]
[342000617,1731355849230,-151.0,0.00022191,7]